Workbook

Sheet Problem
A1: Free Practice Problems for Casualty Actuarial Society Exam 7
A2: G. Stolyarov II, CPCU, ARe, ARC, AIS, AIE
A3: http://rationalargumentator.com/actuaryguide/7-study-guide.html
A4: Inexhaustible Exam-Style Practice
A5: Based on Problem 6(a) and (b) - Spring 2011 CAS Exam 7
A7: You are given the following information for accident year 2034 workers' compensation business with a $500,000 deductible as of December 31, 2036.
B9: Ground-Up Reported Losses | C9: Ground-Up Reported Severity | D9: 36-Months-to-Ultimate LDF
A10: Limited to $500,000 | B10: =Generation!C4 -> 3682009.339 | C10: =Generation!C5 -> 11157.60406 | D10: =Generation!C3 -> 1.364018679
A11: Unlimited | B11: =Generation!D4 -> 3993892.515 | C11: =Generation!D5 -> 15975.57006 | D11: =Generation!D3 -> 1.744929727
A13: Full-coverage premium for all policies: | D13: =Generation!E7 -> 15967447.84
A14: Full-coverage expected loss ratio: | D14: =Generation!E8 -> 0.8543925285
A15: Excess ratio (per-occurrence charge): | D15: =Generation!E9 -> 0.1870161552
A16: Excess ratio (aggregate charge): | D16: =Generation!E10 -> 0.08903738499
A18: Problem (a) | B18: Estimate the IBNR for losses above the deductible using the direct development method.
A19: Problem (b) | B19: Estimate the IBNR for losses above the deductible using the Bornhuetter-Ferguson method.
A21: TO RE-RANDOMIZE THE VALUES FOR THIS PROBLEM, CLICK ON THE FORMULA IN THE RED BOX AND PRESS "ENTER". That is all you need to do.
D22: =StaticRand() -> 0.3640186787

Sheet Solution
A1: Inexhaustible Exam-Style Practice
A2: Based on Problem 6(a) and 6(b) - Spring 2011 CAS Exam 7
A3: Solution (a)
A4: Excess Losses = Unlimited Losses - Limited Losses = | F4: =Problem!B11-Problem!B10 -> 311883.1754
A5: We find the Excess LDF.
A6: (Unlimited Loss)*(Unlimited LDF) = (Limited Loss)*(Limited LDF) + (Excess Loss)*(Excess LDF)
A7: Excess LDF = [(Unlimited Loss)*(Unlimited LDF) - (Limited Loss)*(Limited LDF)]/(Excess Loss) =
A8: Excess LDF = | F8: =(Problem!B11*Problem!D11 - Problem!B10*Problem!D10)/F4 -> 6.241863674
A9: Excess IBNR = (Reported Excess Losses)*(Excess LDF - 1) = | F9: =F4*(F8-1) -> 1634849.088 | G9: <<<<<<<< ANSWER
A11: Solution (b)
A12: For the Bornhuetter-Ferguson (B-F) Method, IBNR = (Expected Loss)*(% Loss Unreported)
A13: % Excess Loss Unreported = 1 - 1/(Excess LDF) = | F13: =1-1/F8 -> 0.8397914386
A14: Expected Excess Loss = (Full-Coverage Premium)*(Full-Coverage Loss Ratio)*[(Per-Occurrence Charge) + (1 - Per-Occurrence Charge)*(Aggregate Charge)]
A16: Expected Excess Loss = | F16: =Problem!D13*Problem!D14*(Problem!D15+(1-Problem!D15)*Problem!D16) -> 3538885.03
A17: B-F IBNR = | B17: =F16 -> 3538885.03 | C17: * | D17: =F13 -> 0.8397914386 | E17: = | F17: =F16*F13 -> 2971925.35 | G17: <<<<<<<< ANSWER | H17: <<<<<<<< ANSWER

Sheet Generation
C2: Limited | D2: Unlimited
B3: 36-Months-to-Ultimate LDF | C3: =1+Problem!D22 -> 1.364018679 | D3: =1+3.131*Problem!D22/1.53 -> 1.744929727
B4: Ground-Up Reported Losses | C4: =3500000+500000*Problem!D22 -> 3682009.339 | D4: =3750000+670000*Problem!D22 -> 3993892.515
B5: Ground-Up Reported Severity | C5: =C4/330 -> 11157.60406 | D5: =D4/250 -> 15975.57006
B7: Full-coverage premium for all policies: | E7: =10000000+1300000*Problem!D22+2000000/Problem!D22 -> 15967447.84
B8: Full-coverage expected loss ratio: | E8: =1 - 0.4*Problem!D22 -> 0.8543925285
B9: Excess ratio (per-occurrence charge): | E9: =0.05+0.15*Problem!D22+0.03/Problem!D22 -> 0.1870161552
B10: Excess ratio (aggregate charge): | E10: =0.14-0.14*Problem!D22 -> 0.08903738499
